[Event "Titled Tuesday Blitz June 20 Early 2023"]
[White "Lorparizangeneh, Shahin"]
[Black "Makhnev, Denis"]
[WhiteFideId "12521604"]
[BlackFideId "13707647"]
[WhiteElo "2526"]
[BlackElo "2515"]
[Result "0-1"]
[Round "10"]
[TimeControl "180+2"]
[Date "2023.06.20"]
[WhiteClock "0:00:02"]
[BlackClock "0:00:04"]
[Board "16"]

1. e4 {[%clk 0:02:56]}  e5 {[%clk 0:02:28]} 2. Nf3 {[%clk 0:02:49]}  Nc6 {[%clk 0:02:28]} 3. Bb5 {[%clk 0:02:50]}  a6 {[%clk 0:02:29]} 4. Ba4 {[%clk 0:02:50]}  Nf6 {[%clk 0:02:30]} 5. O-O {[%clk 0:02:49]}  Be7 {[%clk 0:02:31]} 6. d3 {[%clk 0:02:49]}  b5 {[%clk 0:02:31]} 7. Bb3 {[%clk 0:02:49]}  O-O {[%clk 0:02:32]} 8. a3 {[%clk 0:02:40]}  Bb7 {[%clk 0:02:29]} 9. Nc3 {[%clk 0:02:36]}  Nd4 {[%clk 0:02:25]} 10. Ba2 {[%clk 0:02:17]}  d6 {[%clk 0:01:50]} 11. Nxd4 {[%clk 0:02:15]}  exd4 {[%clk 0:01:51]} 12. Ne2 {[%clk 0:02:15]}  c5 {[%clk 0:01:51]} 13. Ng3 {[%clk 0:02:15]}  d5 {[%clk 0:01:48]} 14. e5 {[%clk 0:02:11]}  Nd7 {[%clk 0:01:48]} 15. Bf4 {[%clk 0:02:08]}  f5 {[%clk 0:01:41]} 16. exf6 {[%clk 0:02:02]}  Rxf6 {[%clk 0:01:41]} 17. Qg4 {[%clk 0:01:39]}  Rg6 {[%clk 0:01:38]} 18. Qf5 {[%clk 0:01:33]}  Nb6 {[%clk 0:01:35]} 19. Rae1 {[%clk 0:01:25]}  Bf8 {[%clk 0:01:33]} 20. Be5 {[%clk 0:00:51]}  Bc8 {[%clk 0:01:28]} 21. Qh5 {[%clk 0:00:43]}  Bg4 {[%clk 0:01:26]} 22. Bc7 {[%clk 0:00:19]}  Qxc7 {[%clk 0:01:26]} 23. Bxd5+ {[%clk 0:00:18]}  Kh8 {[%clk 0:01:27]} 24. Qe5 {[%clk 0:00:18]}  Qxe5 {[%clk 0:00:57]} 25. Rxe5 {[%clk 0:00:19]}  Rd8 {[%clk 0:00:58]} 26. Be4 {[%clk 0:00:18]}  Rf6 {[%clk 0:00:58]} 27. Rg5 {[%clk 0:00:17]}  Be6 {[%clk 0:00:57]} 28. Nh5 {[%clk 0:00:18]}  Rf7 {[%clk 0:00:57]} 29. f4 {[%clk 0:00:18]}  g6 {[%clk 0:00:56]} 30. Ng3 {[%clk 0:00:18]}  Bd6 {[%clk 0:00:31]} 31. f5 {[%clk 0:00:18]}  gxf5 {[%clk 0:00:32]} 32. Nxf5 {[%clk 0:00:18]}  Rdf8 {[%clk 0:00:30]} 33. g4 {[%clk 0:00:17]}  Nd5 {[%clk 0:00:29]} 34. Bxd5 {[%clk 0:00:14]}  Bxd5 {[%clk 0:00:28]} 35. Re1 {[%clk 0:00:14]}  Bf4 {[%clk 0:00:27]} 36. Rh5 {[%clk 0:00:14]}  Bf3 {[%clk 0:00:21]} 37. h3 {[%clk 0:00:15]}  a5 {[%clk 0:00:18]} 38. Nh4 {[%clk 0:00:11]}  Be3+ {[%clk 0:00:13]} 39. Kh2 {[%clk 0:00:11]}  Kg8 {[%clk 0:00:11]} 40. Rxc5 {[%clk 0:00:11]}  Bf2 {[%clk 0:00:11]} 41. Nxf3 {[%clk 0:00:07]}  Rxf3 {[%clk 0:00:10]} 42. Re7 {[%clk 0:00:06]}  Bh4 {[%clk 0:00:10]} 43. Re2 {[%clk 0:00:04]}  b4 {[%clk 0:00:07]} 44. Rxa5 {[%clk 0:00:03]}  Rf2+ {[%clk 0:00:04]} 45. Rxf2 {[%clk 0:00:04]}  Rxf2+ {[%clk 0:00:05]} 46. Kg1 {[%clk 0:00:05]}  Rxc2 {[%clk 0:00:06]} 47. axb4 {[%clk 0:00:06]}  Rxb2 {[%clk 0:00:06]} 48. b5 {[%clk 0:00:06]}  Bf2+ {[%clk 0:00:06]} 49. Kg2 {[%clk 0:00:06]}  Be3+ {[%clk 0:00:07]} 50. Kf3 {[%clk 0:00:07]}  Kg7 {[%clk 0:00:06]} 51. Ke4 {[%clk 0:00:08]}  Kg6 {[%clk 0:00:06]} 52. Kd5 {[%clk 0:00:08]}  Kg5 {[%clk 0:00:06]} 53. Kc6 {[%clk 0:00:08]}  Kh4 {[%clk 0:00:07]} 54. b6 {[%clk 0:00:09]}  Kxh3 {[%clk 0:00:07]} 55. Rh5+ {[%clk 0:00:09]}  Kxg4 {[%clk 0:00:07]} 56. Rxh7 {[%clk 0:00:10]}  Kf3 {[%clk 0:00:08]} 57. b7 {[%clk 0:00:10]}  Ke2 {[%clk 0:00:08]} 58. Rh8 {[%clk 0:00:09]}  Bf4 {[%clk 0:00:08]} 59. Rf8 {[%clk 0:00:10]}  Ke3 {[%clk 0:00:08]} 60. Rf7 {[%clk 0:00:07]}  Rb3 {[%clk 0:00:05]} 61. Rf8 {[%clk 0:00:06]}  Rc3+ {[%clk 0:00:04]} 62. Kd5 {[%clk 0:00:06]}  Rb3 {[%clk 0:00:04]} 63. Kc6 {[%clk 0:00:06]}  Bg3 {[%clk 0:00:04]} 64. Rg8 {[%clk 0:00:06]}  Bh2 {[%clk 0:00:04]} 65. Rh8 {[%clk 0:00:06]}  Be5 {[%clk 0:00:05]} 66. Re8 {[%clk 0:00:06]}  Kf4 {[%clk 0:00:05]} 67. Rf8+ {[%clk 0:00:06]}  Kg5 {[%clk 0:00:05]} 68. Re8 {[%clk 0:00:06]}  Kf5 {[%clk 0:00:05]} 69. Rf8+ {[%clk 0:00:07]}  Kg4 {[%clk 0:00:06]} 70. Re8 {[%clk 0:00:07]}  Kf4 {[%clk 0:00:05]} 71. Rf8+ {[%clk 0:00:07]}  Kg3 {[%clk 0:00:05]} 72. Re8 {[%clk 0:00:07]}  Bf4 {[%clk 0:00:04]} 73. Rd8 {[%clk 0:00:08]}  Rb4 {[%clk 0:00:01]} 74. Rd7 {[%clk 0:00:06]}  Kf3 {[%clk 0:00:02]} 75. Kc5 {[%clk 0:00:06]}  Rb2 {[%clk 0:00:01]} 76. Kc6 {[%clk 0:00:07]}  Ke3 {[%clk 0:00:02]} 77. Rf7 {[%clk 0:00:06]}  Bg3 {[%clk 0:00:01]} 78. Rg7 {[%clk 0:00:06]}  Bh2 {[%clk 0:00:02]} 79. Rh7 {[%clk 0:00:06]}  Bg3 {[%clk 0:00:02]} 80. Rg7 {[%clk 0:00:07]}  Be5 {[%clk 0:00:02]} 81. Re7 {[%clk 0:00:07]}  Kf4 {[%clk 0:00:03]} 82. Re8 {[%clk 0:00:07]}  Kf5 {[%clk 0:00:03]} 83. Rf8+ {[%clk 0:00:08]}  Ke6 {[%clk 0:00:04]} 84. Re8+ {[%clk 0:00:08]}  Kf6 {[%clk 0:00:04]} 85. Kd5 {[%clk 0:00:09]}  Rxb7 {[%clk 0:00:04]} 86. Rf8+ {[%clk 0:00:05]}  Ke7 {[%clk 0:00:04]} 87. Rh8 {[%clk 0:00:02]}  Bxh8 {[%clk 0:00:04]} 0-1


[Site "https://www.chess.com"]

[Event "Titled Tuesday Blitz June 20 Early 2023"]
[White "Pap, Gyula"]
[Black "Sattarov, Bobir"]
[WhiteFideId "725323"]
[BlackFideId "14203081"]
[WhiteElo "2519"]
[BlackElo "2351"]
[Result "1-0"]
[Round "10"]
[TimeControl "180+2"]
[Date "2023.06.20"]
[WhiteClock "0:01:46"]
[BlackClock "0:01:01"]
[Board "18"]

1. d4 {[%clk 0:03:00]}  Nf6 {[%clk 0:02:57]} 2. c4 {[%clk 0:03:01]}  e6 {[%clk 0:02:57]} 3. Nc3 {[%clk 0:03:01]}  Bb4 {[%clk 0:02:57]} 4. Qb3 {[%clk 0:03:01]}  c5 {[%clk 0:02:50]} 5. dxc5 {[%clk 0:03:01]}  Na6 {[%clk 0:02:50]} 6. a3 {[%clk 0:03:01]}  Bxc3+ {[%clk 0:02:49]} 7. Qxc3 {[%clk 0:03:02]}  Nxc5 {[%clk 0:02:49]} 8. b4 {[%clk 0:03:03]}  Nce4 {[%clk 0:02:47]} 9. Qb2 {[%clk 0:03:03]}  b6 {[%clk 0:02:23]} 10. f3 {[%clk 0:02:53]}  Nd6 {[%clk 0:02:21]} 11. e4 {[%clk 0:02:52]}  Nb7 {[%clk 0:02:05]} 12. Bd3 {[%clk 0:02:52]}  d6 {[%clk 0:02:04]} 13. Ne2 {[%clk 0:02:52]}  e5 {[%clk 0:02:02]} 14. Bg5 {[%clk 0:02:48]}  h6 {[%clk 0:02:02]} 15. Bh4 {[%clk 0:02:48]}  Be6 {[%clk 0:02:01]} 16. O-O {[%clk 0:02:48]}  O-O {[%clk 0:02:01]} 17. f4 {[%clk 0:02:38]}  Qc7 {[%clk 0:01:52]} 18. Bxf6 {[%clk 0:02:18]}  gxf6 {[%clk 0:01:53]} 19. Rac1 {[%clk 0:02:17]}  a5 {[%clk 0:01:48]} 20. Qd2 {[%clk 0:02:02]}  Kg7 {[%clk 0:01:43]} 21. Ng3 {[%clk 0:01:52]}  Qe7 {[%clk 0:01:30]} 22. Nh5+ {[%clk 0:01:47]}  Kh7 {[%clk 0:01:30]} 23. fxe5 {[%clk 0:01:46]}  fxe5 {[%clk 0:01:01]} 24. Rf6 {[%clk 0:01:46]} 1-0


[Site "https://www.chess.com"]

[Event "Titled Tuesday Blitz June 20 Early 2023"]
[White "Grandelius, Nils"]
[Black "Postny, Evgeny"]
[WhiteFideId "1710400"]
[BlackFideId "2804344"]
[WhiteElo "2573"]
[BlackElo "2504"]
[Result "0-1"]
[Round "10"]
[TimeControl "180+2"]
[Date "2023.06.20"]
[WhiteClock "0:00:04"]
[BlackClock "0:00:41"]
[Board "21"]

1. c4 {[%clk 0:03:00]}  Nf6 {[%clk 0:02:58]} 2. Nf3 {[%clk 0:02:59]}  e6 {[%clk 0:02:57]} 3. b3 {[%clk 0:03:00]}  d5 {[%clk 0:02:57]} 4. Bb2 {[%clk 0:03:00]}  Be7 {[%clk 0:02:56]} 5. e3 {[%clk 0:03:01]}  O-O {[%clk 0:02:56]} 6. Nc3 {[%clk 0:03:02]}  a6 {[%clk 0:02:55]} 7. Rg1 {[%clk 0:02:50]}  c5 {[%clk 0:02:50]} 8. cxd5 {[%clk 0:02:49]}  exd5 {[%clk 0:02:50]} 9. d4 {[%clk 0:02:13]}  Nc6 {[%clk 0:02:48]} 10. Be2 {[%clk 0:02:14]}  Bg4 {[%clk 0:02:42]} 11. dxc5 {[%clk 0:02:06]}  Bxc5 {[%clk 0:02:41]} 12. h3 {[%clk 0:01:54]}  Be6 {[%clk 0:02:41]} 13. Kf1 {[%clk 0:01:50]}  Re8 {[%clk 0:02:34]} 14. Rc1 {[%clk 0:01:48]}  Ba7 {[%clk 0:02:34]} 15. Na4 {[%clk 0:01:46]}  Ne4 {[%clk 0:02:30]} 16. Bd3 {[%clk 0:01:39]}  Qe7 {[%clk 0:02:10]} 17. Nc3 {[%clk 0:01:34]}  Rad8 {[%clk 0:02:02]} 18. Ne2 {[%clk 0:01:26]}  Nxf2 {[%clk 0:01:51]} 19. Kxf2 {[%clk 0:01:23]}  Bf5 {[%clk 0:01:47]} 20. Bxf5 {[%clk 0:00:57]}  Qxe3+ {[%clk 0:01:46]} 21. Ke1 {[%clk 0:00:45]}  Qf2+ {[%clk 0:01:28]} 22. Kd2 {[%clk 0:00:45]}  Be3+ {[%clk 0:01:28]} 23. Kc2 {[%clk 0:00:46]}  Bxc1 {[%clk 0:01:28]} 24. Kxc1 {[%clk 0:00:35]}  Rxe2 {[%clk 0:01:23]} 25. Rf1 {[%clk 0:00:27]}  Qe3+ {[%clk 0:01:12]} 26. Kb1 {[%clk 0:00:24]}  Rxg2 {[%clk 0:00:55]} 27. Re1 {[%clk 0:00:18]}  Qf2 {[%clk 0:00:46]} 28. Bc2 {[%clk 0:00:04]}  Nb4 {[%clk 0:00:46]} 29. Qd4 {[%clk 0:00:04]}  Qxc2+ {[%clk 0:00:45]} 30. Ka1 {[%clk 0:00:04]}  Qxb2+ {[%clk 0:00:43]} 31. Qxb2 {[%clk 0:00:05]}  Rxb2 {[%clk 0:00:41]} 32. Ng5 {[%clk 0:00:04]} 0-1


[Site "https://www.chess.com"]

[Event "Titled Tuesday Blitz June 20 Early 2023"]
[White "Timerkhanov, Alexander"]
[Black "Srihari L R"]
[WhiteFideId "24177938"]
[BlackFideId "46617116"]
[WhiteElo "2278"]
[BlackElo "2334"]
[Result "1/2-1/2"]
[Round "10"]
[TimeControl "180+2"]
[Date "2023.06.20"]
[WhiteClock "0:00:06"]
[BlackClock "0:00:22"]
[Board "22"]

1. d4 {[%clk 0:03:00]}  d5 {[%clk 0:02:58]} 2. Bf4 {[%clk 0:03:00]}  Nf6 {[%clk 0:02:55]} 3. e3 {[%clk 0:03:01]}  c5 {[%clk 0:02:55]} 4. c3 {[%clk 0:02:59]}  Nc6 {[%clk 0:02:55]} 5. Nd2 {[%clk 0:03:00]}  cxd4 {[%clk 0:02:54]} 6. exd4 {[%clk 0:02:59]}  g6 {[%clk 0:02:54]} 7. Ngf3 {[%clk 0:02:58]}  Nh5 {[%clk 0:02:51]} 8. Be3 {[%clk 0:02:57]}  Bg7 {[%clk 0:02:50]} 9. Bd3 {[%clk 0:02:56]}  O-O {[%clk 0:02:51]} 10. O-O {[%clk 0:02:52]}  f5 {[%clk 0:02:47]} 11. Nb3 {[%clk 0:02:48]}  Nf6 {[%clk 0:02:44]} 12. Ne5 {[%clk 0:02:47]}  Nxe5 {[%clk 0:02:42]} 13. dxe5 {[%clk 0:02:47]}  Ng4 {[%clk 0:02:42]} 14. Bd4 {[%clk 0:02:35]}  Nxe5 {[%clk 0:02:39]} 15. Re1 {[%clk 0:02:28]}  Nf7 {[%clk 0:02:39]} 16. Bxg7 {[%clk 0:02:23]}  Kxg7 {[%clk 0:02:40]} 17. f4 {[%clk 0:02:22]}  Qd6 {[%clk 0:02:36]} 18. Qd2 {[%clk 0:02:20]}  Bd7 {[%clk 0:02:34]} 19. Nd4 {[%clk 0:02:19]}  Rfe8 {[%clk 0:02:34]} 20. Kh1 {[%clk 0:02:17]}  e5 {[%clk 0:02:32]} 21. fxe5 {[%clk 0:02:17]}  Nxe5 {[%clk 0:02:33]} 22. Be2 {[%clk 0:02:16]}  Re7 {[%clk 0:02:30]} 23. Bf3 {[%clk 0:02:12]}  Rae8 {[%clk 0:02:29]} 24. Rad1 {[%clk 0:02:11]}  Bc6 {[%clk 0:02:19]} 25. h3 {[%clk 0:02:08]}  Nc4 {[%clk 0:02:18]} 26. Rxe7+ {[%clk 0:01:59]}  Qxe7 {[%clk 0:02:17]} 27. Qf2 {[%clk 0:01:58]}  Qe3 {[%clk 0:02:17]} 28. Qg3 {[%clk 0:01:54]}  Qe5 {[%clk 0:02:07]} 29. Qf2 {[%clk 0:01:46]}  Re7 {[%clk 0:02:01]} 30. Nc2 {[%clk 0:01:36]}  Nxb2 {[%clk 0:01:55]} 31. Re1 {[%clk 0:01:36]}  Qf6 {[%clk 0:01:52]} 32. Rxe7+ {[%clk 0:01:35]}  Qxe7 {[%clk 0:01:53]} 33. Qxa7 {[%clk 0:01:35]}  Nc4 {[%clk 0:01:51]} 34. Nb4 {[%clk 0:01:32]}  Qe1+ {[%clk 0:01:42]} 35. Kh2 {[%clk 0:01:29]}  Qe5+ {[%clk 0:01:42]} 36. Kh1 {[%clk 0:01:26]}  Kh6 {[%clk 0:01:41]} 37. Qd4 {[%clk 0:01:19]}  Qxd4 {[%clk 0:01:20]} 38. cxd4 {[%clk 0:01:19]}  Nb6 {[%clk 0:01:20]} 39. h4 {[%clk 0:01:16]}  Kg7 {[%clk 0:01:20]} 40. Kg1 {[%clk 0:01:16]}  Kf6 {[%clk 0:01:20]} 41. Kf2 {[%clk 0:01:16]}  Ke6 {[%clk 0:01:19]} 42. Nd3 {[%clk 0:01:10]}  Nd7 {[%clk 0:01:13]} 43. Nf4+ {[%clk 0:01:08]}  Kd6 {[%clk 0:01:13]} 44. g4 {[%clk 0:01:07]}  fxg4 {[%clk 0:01:13]} 45. Bxg4 {[%clk 0:01:07]}  Nf6 {[%clk 0:01:13]} 46. Bf3 {[%clk 0:01:06]}  Bd7 {[%clk 0:01:10]} 47. Nd3 {[%clk 0:01:03]}  b6 {[%clk 0:01:08]} 48. Ne5 {[%clk 0:01:03]}  Bf5 {[%clk 0:01:08]} 49. Ke3 {[%clk 0:01:02]}  Be4 {[%clk 0:01:04]} 50. Be2 {[%clk 0:01:01]}  Ke6 {[%clk 0:01:04]} 51. a3 {[%clk 0:01:00]}  h6 {[%clk 0:01:04]} 52. Bd1 {[%clk 0:00:58]}  g5 {[%clk 0:01:04]} 53. hxg5 {[%clk 0:00:57]}  hxg5 {[%clk 0:01:04]} 54. Be2 {[%clk 0:00:57]}  Bf5 {[%clk 0:00:54]} 55. Bd1 {[%clk 0:00:52]}  Nd7 {[%clk 0:00:52]} 56. Nf3 {[%clk 0:00:46]}  Kf6 {[%clk 0:00:52]} 57. Bb3 {[%clk 0:00:42]}  Be6 {[%clk 0:00:51]} 58. Ne1 {[%clk 0:00:38]}  Nf8 {[%clk 0:00:50]} 59. Nd3 {[%clk 0:00:37]}  Ng6 {[%clk 0:00:49]} 60. Bd1 {[%clk 0:00:30]}  Ne7 {[%clk 0:00:46]} 61. Ne5 {[%clk 0:00:28]}  Nf5+ {[%clk 0:00:47]} 62. Kd3 {[%clk 0:00:28]}  Nh6 {[%clk 0:00:46]} 63. Ke3 {[%clk 0:00:26]}  Nf5+ {[%clk 0:00:43]} 64. Kd3 {[%clk 0:00:25]}  Nd6 {[%clk 0:00:42]} 65. Bf3 {[%clk 0:00:24]}  Nc4 {[%clk 0:00:38]} 66. Nxc4 {[%clk 0:00:10]}  dxc4+ {[%clk 0:00:39]} 67. Kc3 {[%clk 0:00:10]}  b5 {[%clk 0:00:36]} 68. d5 {[%clk 0:00:09]}  Bd7 {[%clk 0:00:35]} 69. Kd4 {[%clk 0:00:09]}  g4 {[%clk 0:00:35]} 70. Bg2 {[%clk 0:00:07]}  Kf5 {[%clk 0:00:35]} 71. a4 {[%clk 0:00:07]}  bxa4 {[%clk 0:00:34]} 72. Kxc4 {[%clk 0:00:07]}  Ke5 {[%clk 0:00:32]} 73. Kb4 {[%clk 0:00:06]}  g3 {[%clk 0:00:32]} 74. Ka3 {[%clk 0:00:05]}  Kd4 {[%clk 0:00:31]} 75. Kb4 {[%clk 0:00:05]}  Ke3 {[%clk 0:00:31]} 76. Ka3 {[%clk 0:00:05]}  Kf2 {[%clk 0:00:31]} 77. Be4 {[%clk 0:00:05]}  g2 {[%clk 0:00:32]} 78. Bxg2 {[%clk 0:00:05]}  Kxg2 {[%clk 0:00:29]} 79. d6 {[%clk 0:00:06]}  Kf3 {[%clk 0:00:24]} 80. Kb2 {[%clk 0:00:06]}  Ke4 {[%clk 0:00:22]} 81. Ka1 {[%clk 0:00:06]} 1/2-1/2


[Site "https://www.chess.com"]

[Event "Titled Tuesday Blitz June 20 Early 2023"]
[White "Atakhan, Abtin"]
[Black "Galchenko, Matvey"]
[WhiteFideId "22502203"]
[BlackFideId "24175480"]
[WhiteElo "2008"]
[BlackElo "2423"]
[Result "1-0"]
[Round "10"]
[TimeControl "180+2"]
[Date "2023.06.20"]
[WhiteClock "0:00:06"]
[BlackClock "0:00:19"]
[Board "26"]

1. Nf3 {[%clk 0:03:00]}  c5 {[%clk 0:02:58]} 2. c4 {[%clk 0:03:01]}  g6 {[%clk 0:02:58]} 3. e4 {[%clk 0:02:58]}  Bg7 {[%clk 0:02:57]} 4. d4 {[%clk 0:02:59]}  cxd4 {[%clk 0:02:55]} 5. Nxd4 {[%clk 0:03:00]}  Nc6 {[%clk 0:02:56]} 6. Be3 {[%clk 0:03:00]}  Nf6 {[%clk 0:02:55]} 7. Nc3 {[%clk 0:03:00]}  O-O {[%clk 0:02:55]} 8. Be2 {[%clk 0:03:00]}  d6 {[%clk 0:02:54]} 9. O-O {[%clk 0:03:00]}  Bd7 {[%clk 0:02:54]} 10. h3 {[%clk 0:03:01]}  Nxd4 {[%clk 0:02:54]} 11. Bxd4 {[%clk 0:03:02]}  Bc6 {[%clk 0:02:55]} 12. Qc2 {[%clk 0:03:02]}  a5 {[%clk 0:02:56]} 13. Rad1 {[%clk 0:03:00]}  a4 {[%clk 0:02:51]} 14. c5 {[%clk 0:02:56]}  Qa5 {[%clk 0:02:52]} 15. cxd6 {[%clk 0:02:54]}  exd6 {[%clk 0:02:52]} 16. Rfe1 {[%clk 0:02:47]}  a3 {[%clk 0:02:50]} 17. Bc4 {[%clk 0:02:29]}  axb2 {[%clk 0:02:47]} 18. Qxb2 {[%clk 0:02:30]}  Nh5 {[%clk 0:01:53]} 19. Nd5 {[%clk 0:02:18]}  Bxd5 {[%clk 0:01:51]} 20. Bxd5 {[%clk 0:02:18]}  Bxd4 {[%clk 0:01:45]} 21. Qxd4 {[%clk 0:02:19]}  Rad8 {[%clk 0:01:27]} 22. Qd2 {[%clk 0:02:01]}  Qa7 {[%clk 0:01:16]} 23. Rb1 {[%clk 0:01:57]}  Rd7 {[%clk 0:01:16]} 24. Qc3 {[%clk 0:01:40]}  Re8 {[%clk 0:01:13]} 25. g3 {[%clk 0:01:28]}  Rde7 {[%clk 0:01:11]} 26. Kg2 {[%clk 0:01:26]}  Qa6 {[%clk 0:00:58]} 27. Rb3 {[%clk 0:01:19]}  Qxa2 {[%clk 0:00:43]} 28. Ra1 {[%clk 0:01:03]}  Qe2 {[%clk 0:00:43]} 29. Rb2 {[%clk 0:01:00]}  Rc7 {[%clk 0:00:29]} 30. Qb3 {[%clk 0:00:41]}  Nf4+ {[%clk 0:00:18]} 31. gxf4 {[%clk 0:00:41]}  Qh5 {[%clk 0:00:18]} 32. Rc2 {[%clk 0:00:30]}  Rce7 {[%clk 0:00:18]} 33. Qf3 {[%clk 0:00:28]}  Qh6 {[%clk 0:00:18]} 34. Rac1 {[%clk 0:00:25]}  Qg7 {[%clk 0:00:16]} 35. Rc7 {[%clk 0:00:23]}  Qf6 {[%clk 0:00:17]} 36. Rxe7 {[%clk 0:00:16]}  Rxe7 {[%clk 0:00:18]} 37. Rb1 {[%clk 0:00:17]}  Kg7 {[%clk 0:00:18]} 38. Rxb7 {[%clk 0:00:16]}  Rxb7 {[%clk 0:00:19]} 39. Bxb7 {[%clk 0:00:17]}  h5 {[%clk 0:00:18]} 40. Bd5 {[%clk 0:00:17]}  Qd4 {[%clk 0:00:18]} 41. Qe3 {[%clk 0:00:17]}  Qf6 {[%clk 0:00:19]} 42. Qd2 {[%clk 0:00:14]}  Kh7 {[%clk 0:00:18]} 43. Kg3 {[%clk 0:00:13]}  Qe7 {[%clk 0:00:18]} 44. h4 {[%clk 0:00:13]}  Qf6 {[%clk 0:00:18]} 45. Qe3 {[%clk 0:00:12]}  Kg7 {[%clk 0:00:19]} 46. e5 {[%clk 0:00:12]}  Qf5 {[%clk 0:00:18]} 47. Bf3 {[%clk 0:00:09]}  Qd7 {[%clk 0:00:17]} 48. exd6 {[%clk 0:00:08]}  f6 {[%clk 0:00:17]} 49. Qe7+ {[%clk 0:00:07]}  Qxe7 {[%clk 0:00:17]} 50. dxe7 {[%clk 0:00:08]}  Kf7 {[%clk 0:00:18]} 51. Be4 {[%clk 0:00:07]}  f5 {[%clk 0:00:19]} 52. Bd5+ {[%clk 0:00:05]}  Kxe7 {[%clk 0:00:19]} 53. Kf3 {[%clk 0:00:06]}  Kd6 {[%clk 0:00:19]} 54. Bf7 {[%clk 0:00:06]} 1-0


[Site "https://www.chess.com"]

[Event "Titled Tuesday Blitz June 20 Early 2023"]
[White "Timofeev, Artyom"]
[Black "Amilal Munkhdalai"]
[WhiteFideId "4140419"]
[BlackFideId "4903250"]
[WhiteElo "2570"]
[BlackElo "2293"]
[Result "0-1"]
[Round "10"]
[TimeControl "180+2"]
[Date "2023.06.20"]
[WhiteClock "0:00:05"]
[BlackClock "0:00:18"]
[Board "27"]

1. d4 {[%clk 0:03:00]}  Nf6 {[%clk 0:03:00]} 2. c4 {[%clk 0:03:00]}  e6 {[%clk 0:03:00]} 3. Nc3 {[%clk 0:02:59]}  Bb4 {[%clk 0:03:00]} 4. f3 {[%clk 0:02:59]}  c5 {[%clk 0:03:00]} 5. d5 {[%clk 0:03:00]}  b5 {[%clk 0:02:58]} 6. e4 {[%clk 0:02:59]}  bxc4 {[%clk 0:02:55]} 7. Bxc4 {[%clk 0:02:57]}  O-O {[%clk 0:02:56]} 8. Ne2 {[%clk 0:02:56]}  Ba6 {[%clk 0:02:49]} 9. Bxa6 {[%clk 0:02:53]}  Nxa6 {[%clk 0:02:49]} 10. O-O {[%clk 0:02:53]}  c4 {[%clk 0:02:33]} 11. Kh1 {[%clk 0:02:52]}  Nc5 {[%clk 0:02:29]} 12. Be3 {[%clk 0:02:51]}  Re8 {[%clk 0:02:13]} 13. dxe6 {[%clk 0:02:47]}  dxe6 {[%clk 0:02:10]} 14. Qd4 {[%clk 0:02:16]}  Qxd4 {[%clk 0:02:06]} 15. Bxd4 {[%clk 0:02:10]}  Nd3 {[%clk 0:01:59]} 16. b3 {[%clk 0:02:08]}  e5 {[%clk 0:01:58]} 17. Be3 {[%clk 0:02:08]}  Rec8 {[%clk 0:01:55]} 18. Rfd1 {[%clk 0:01:53]}  Nb2 {[%clk 0:01:42]} 19. Rdb1 {[%clk 0:01:45]}  cxb3 {[%clk 0:01:29]} 20. Rxb2 {[%clk 0:01:41]}  Rxc3 {[%clk 0:01:28]} 21. Rxb3 {[%clk 0:01:39]}  Rxb3 {[%clk 0:01:27]} 22. axb3 {[%clk 0:01:39]}  a5 {[%clk 0:01:26]} 23. Kg1 {[%clk 0:01:16]}  Nd7 {[%clk 0:01:21]} 24. Kf2 {[%clk 0:01:12]}  Nc5 {[%clk 0:01:20]} 25. Bxc5 {[%clk 0:01:12]}  Bxc5+ {[%clk 0:01:20]} 26. Kg3 {[%clk 0:01:09]}  Bb4 {[%clk 0:01:17]} 27. Rd1 {[%clk 0:01:04]}  Rc8 {[%clk 0:01:14]} 28. Nc1 {[%clk 0:00:59]}  f6 {[%clk 0:01:09]} 29. Nd3 {[%clk 0:00:53]}  Rd8 {[%clk 0:01:05]} 30. Nb2 {[%clk 0:00:49]}  Rb8 {[%clk 0:01:04]} 31. Nc4 {[%clk 0:00:47]}  Bc3 {[%clk 0:00:59]} 32. Kg4 {[%clk 0:00:38]}  Rxb3 {[%clk 0:00:54]} 33. h4 {[%clk 0:00:34]}  g6 {[%clk 0:00:51]} 34. h5 {[%clk 0:00:32]}  a4 {[%clk 0:00:48]} 35. h6 {[%clk 0:00:31]}  Bd4 {[%clk 0:00:45]} 36. Rd2 {[%clk 0:00:22]}  Rb4 {[%clk 0:00:38]} 37. Nd6 {[%clk 0:00:21]}  Kf8 {[%clk 0:00:33]} 38. Rc2 {[%clk 0:00:20]}  Ke7 {[%clk 0:00:32]} 39. Nc4 {[%clk 0:00:20]}  Ke6 {[%clk 0:00:26]} 40. g3 {[%clk 0:00:19]}  Rb3 {[%clk 0:00:23]} 41. f4 {[%clk 0:00:19]}  a3 {[%clk 0:00:22]} 42. Ra2 {[%clk 0:00:17]}  Bb2 {[%clk 0:00:22]} 43. f5+ {[%clk 0:00:15]}  gxf5+ {[%clk 0:00:22]} 44. exf5+ {[%clk 0:00:15]}  Kd5 {[%clk 0:00:22]} 45. Nd2 {[%clk 0:00:15]}  Rd3 {[%clk 0:00:22]} 46. Nf3 {[%clk 0:00:15]}  Rd1 {[%clk 0:00:21]} 47. Kh5 {[%clk 0:00:09]}  Ra1 {[%clk 0:00:20]} 48. Rxa1 {[%clk 0:00:09]}  Bxa1 {[%clk 0:00:21]} 49. Nd2 {[%clk 0:00:09]}  Bd4 {[%clk 0:00:19]} 50. g4 {[%clk 0:00:08]}  a2 {[%clk 0:00:18]} 51. Nb3 {[%clk 0:00:09]}  Kc4 {[%clk 0:00:18]} 52. g5 {[%clk 0:00:08]}  Kxb3 {[%clk 0:00:18]} 53. g6 {[%clk 0:00:09]}  a1=Q {[%clk 0:00:18]} 54. gxh7 {[%clk 0:00:05]}  Qg1 {[%clk 0:00:18]} 0-1


[Site "https://www.chess.com"]